[Event "*** Titled Tuesday Blitz"]
[Site "Chess.com"]
[Date "2021.04.20"]
[Round "3"]
[White "McCarthyStone"]
[Black "IriBu"]
[Result "0-1"]
[WhiteElo "2369"]
[BlackElo "2565"]
[TimeControl "180+1"]
[EndTime "10:27:19 PDT"]
[Termination "IriBu won on time"]

1. e4 {[%clk 0:03:00.9]} 1... c5 {[%clk 0:02:59.5]} 2. Nf3 {[%clk 0:02:58.1]}
2... a6 {[%clk 0:03:00]} 3. c4 {[%clk 0:02:36.5]} 3... Nc6 {[%clk 0:02:58.6]} 4.
Nc3 {[%clk 0:02:36.7]} 4... e6 {[%clk 0:02:54.8]} 5. d4 {[%clk 0:02:35.5]} 5...
cxd4 {[%clk 0:02:54.7]} 6. Nxd4 {[%clk 0:02:36.4]} 6... Bb4 {[%clk 0:02:53]} 7.
Be3 {[%clk 0:02:31.2]} 7... Bxc3+ {[%clk 0:02:47.8]} 8. bxc3 {[%clk 0:02:30.9]}
8... d6 {[%clk 0:02:47.7]} 9. Be2 {[%clk 0:02:22]} 9... Nf6 {[%clk 0:02:44]} 10.
Nxc6 {[%clk 0:02:10.9]} 10... bxc6 {[%clk 0:02:43.3]} 11. e5 {[%clk 0:02:11.8]}
11... dxe5 {[%clk 0:02:39.3]} 12. Qxd8+ {[%clk 0:02:12.7]} 12... Kxd8 {[%clk
0:02:39.4]} 13. Bb6+ {[%clk 0:02:13.2]} 13... Ke7 {[%clk 0:02:33.5]} 14. Rd1
{[%clk 0:02:09]} 14... Nd7 {[%clk 0:02:32.2]} 15. Bc7 {[%clk 0:02:06.5]} 15...
Bb7 {[%clk 0:02:31.3]} 16. Bd6+ {[%clk 0:02:00.5]} 16... Ke8 {[%clk 0:02:31.7]}
17. Rb1 {[%clk 0:02:00.7]} 17... Ra7 {[%clk 0:02:25.1]} 18. c5 {[%clk
0:01:53.2]} 18... f5 {[%clk 0:02:21.4]} 19. O-O {[%clk 0:01:51.3]} 19... a5
{[%clk 0:02:15]} 20. Rfd1 {[%clk 0:01:18.8]} 20... g6 {[%clk 0:01:56.1]} 21. Bc4
{[%clk 0:01:02.1]} 21... Kf7 {[%clk 0:01:48.7]} 22. Bc7 {[%clk 0:01:02.4]} 22...
Bc8 {[%clk 0:01:49]} 23. Bd6 {[%clk 0:00:33.7]} 23... a4 {[%clk 0:01:48.1]} 24.
Rb4 {[%clk 0:00:24.8]} 24... Rd8 {[%clk 0:01:42.9]} 25. Bxe5 {[%clk 0:00:23.2]}
25... Re8 {[%clk 0:01:17.2]} 26. Bd6 {[%clk 0:00:21.6]} 26... Ra5 {[%clk
0:01:17.5]} 27. Kf1 {[%clk 0:00:15]} 27... Nxc5 {[%clk 0:01:17]} 28. f3 {[%clk
0:00:12.3]} 28... Nb7 {[%clk 0:01:12.5]} 29. Bc7 {[%clk 0:00:11]} 29... Ra8
{[%clk 0:01:07]} 30. Ke2 {[%clk 0:00:09]} 30... Nc5 {[%clk 0:01:01.5]} 31. Be5
{[%clk 0:00:08]} 31... Nd7 {[%clk 0:00:57.9]} 32. Bd6 {[%clk 0:00:06.3]} 32...
Kf6 {[%clk 0:00:58.4]} 33. f4 {[%clk 0:00:06.3]} 33... h6 {[%clk 0:00:56.1]} 34.
Kf3 {[%clk 0:00:05.4]} 34... g5 {[%clk 0:00:56.3]} 35. g3 {[%clk 0:00:05.3]}
35... g4+ {[%clk 0:00:54.9]} 36. Kf2 {[%clk 0:00:05.7]} 36... h5 {[%clk
0:00:55.5]} 37. Re1 {[%clk 0:00:04]} 37... c5 {[%clk 0:00:39.8]} 38. Rb2 {[%clk
0:00:03]} 38... Ba6 {[%clk 0:00:37.8]} 0-1

[Event "*** Titled Tuesday Blitz"]
[Site "Chess.com"]
[Date "2021.04.20"]
[Round "3"]
[White "Firouzja2003"]
[Black "emperor87"]
[Result "0-1"]
[WhiteElo "3125"]
[BlackElo "2697"]
[TimeControl "180+1"]
[EndTime "10:27:20 PDT"]
[Termination "emperor87 won on time"]

1. d4 {[%clk 0:03:00.9]} 1... Nf6 {[%clk 0:02:58.5]} 2. Bg5 {[%clk 0:03:00]}
2... g6 {[%clk 0:02:56.7]} 3. Nd2 {[%clk 0:02:52.5]} 3... d5 {[%clk 0:02:54.5]}
4. c3 {[%clk 0:02:47.1]} 4... Bg7 {[%clk 0:02:53.7]} 5. e3 {[%clk 0:02:46.1]}
5... O-O {[%clk 0:02:53.5]} 6. Bd3 {[%clk 0:02:44.6]} 6... b6 {[%clk 0:02:37.6]}
7. Qe2 {[%clk 0:02:42.6]} 7... c5 {[%clk 0:02:35.5]} 8. Ngf3 {[%clk 0:02:40.8]}
8... Nc6 {[%clk 0:02:24.2]} 9. h4 {[%clk 0:02:33]} 9... h6 {[%clk 0:02:20.1]}
10. Bxf6 {[%clk 0:02:27.5]} 10... exf6 {[%clk 0:02:20.6]} 11. h5 {[%clk
0:02:28.3]} 11... g5 {[%clk 0:02:06]} 12. O-O-O {[%clk 0:02:26.8]} 12... c4
{[%clk 0:02:02]} 13. Bc2 {[%clk 0:02:25.3]} 13... f5 {[%clk 0:02:01.8]} 14. Nf1
{[%clk 0:02:21.5]} 14... b5 {[%clk 0:01:59.3]} 15. Ng3 {[%clk 0:02:20.6]} 15...
Qf6 {[%clk 0:01:49.7]} 16. Ne5 {[%clk 0:02:13]} 16... Ne7 {[%clk 0:01:38.6]} 17.
f4 {[%clk 0:01:20.2]} 17... g4 {[%clk 0:01:37.9]} 18. Kd2 {[%clk 0:01:20.3]}
18... a5 {[%clk 0:01:33.5]} 19. Ke1 {[%clk 0:01:16.3]} 19... Be6 {[%clk
0:01:29.8]} 20. Kf2 {[%clk 0:01:16.1]} 20... Nc8 {[%clk 0:01:29.7]} 21. b3
{[%clk 0:00:59.3]} 21... Nd6 {[%clk 0:01:29.7]} 22. bxc4 {[%clk 0:00:59.3]}
22... bxc4 {[%clk 0:01:22.3]} 23. Rb1 {[%clk 0:00:58.9]} 23... Qd8 {[%clk
0:01:18.9]} 24. Rb2 {[%clk 0:00:55.9]} 24... Qc7 {[%clk 0:01:18.5]} 25. Rhb1
{[%clk 0:00:55.9]} 25... Rfb8 {[%clk 0:01:12]} 26. Ba4 {[%clk 0:00:55.9]} 26...
Bf6 {[%clk 0:01:07.6]} 27. Kg1 {[%clk 0:00:51.6]} 27... Bh4 {[%clk 0:01:06.7]}
28. Nf1 {[%clk 0:00:49.6]} 28... Ne4 {[%clk 0:01:05.3]} 29. Qc2 {[%clk
0:00:33.4]} 29... Bf2+ {[%clk 0:01:03.9]} 30. Kh2 {[%clk 0:00:28.8]} 30... Rxb2
{[%clk 0:00:59.6]} 31. Rxb2 {[%clk 0:00:26.7]} 31... Qe7 {[%clk 0:00:59.6]} 32.
Qxf2 {[%clk 0:00:17.2]} 32... Nxf2 {[%clk 0:00:57.7]} 33. Rxf2 {[%clk
0:00:18.1]} 33... Qh4+ {[%clk 0:00:57.1]} 34. Kg1 {[%clk 0:00:18.4]} 34... Rb8
{[%clk 0:00:54.8]} 35. g3 {[%clk 0:00:18.9]} 35... Qf6 {[%clk 0:00:53.9]} 36.
Bc2 {[%clk 0:00:13.6]} 36... Kg7 {[%clk 0:00:49.3]} 37. Kg2 {[%clk 0:00:11.3]}
37... Rb2 {[%clk 0:00:48.7]} 38. Ba4 {[%clk 0:00:11.5]} 38... Rxf2+ {[%clk
0:00:47.7]} 39. Kxf2 {[%clk 0:00:12.4]} 39... Qe7 {[%clk 0:00:47.3]} 40. e4
{[%clk 0:00:06.9]} 40... Qa3 {[%clk 0:00:44.4]} 41. Bc2 {[%clk 0:00:05.6]} 41...
Qxc3 {[%clk 0:00:43]} 0-1

[Event "*** Titled Tuesday Blitz"]
[Site "Chess.com"]
[Date "2021.04.20"]
[Round "3"]
[White "mamonika"]
[Black "GMJustin"]
[Result "1-0"]
[WhiteElo "2065"]
[BlackElo "2305"]
[TimeControl "180+1"]
[EndTime "10:27:20 PDT"]
[Termination "mamonika won on time"]

1. e4 {[%clk 0:03:00.9]} 1... c5 {[%clk 0:02:56]} 2. Nf3 {[%clk 0:03:00.6]} 2...
d6 {[%clk 0:02:55.8]} 3. d4 {[%clk 0:03:00.1]} 3... cxd4 {[%clk 0:02:55.9]} 4.
Nxd4 {[%clk 0:03:01]} 4... Nf6 {[%clk 0:02:55.7]} 5. Nc3 {[%clk 0:02:56.9]} 5...
Nc6 {[%clk 0:02:55.2]} 6. Be2 {[%clk 0:02:50.9]} 6... e5 {[%clk 0:02:54.1]} 7.
Nb3 {[%clk 0:02:42.8]} 7... Be7 {[%clk 0:02:52.5]} 8. Be3 {[%clk 0:02:40.6]}
8... Be6 {[%clk 0:02:45.9]} 9. O-O {[%clk 0:02:39.3]} 9... O-O {[%clk
0:02:38.6]} 10. Bf3 {[%clk 0:02:32.8]} 10... a5 {[%clk 0:02:33.6]} 11. Nd5
{[%clk 0:02:16.5]} 11... a4 {[%clk 0:02:08.5]} 12. Bb6 {[%clk 0:02:14.1]} 12...
Qc8 {[%clk 0:01:13.4]} 13. Nxe7+ {[%clk 0:02:07.1]} 13... Nxe7 {[%clk
0:01:14.3]} 14. Na5 {[%clk 0:01:15.6]} 14... Ra6 {[%clk 0:00:48.3]} 15. Qxd6
{[%clk 0:01:11.4]} 15... Ng6 {[%clk 0:00:21.5]} 16. Be2 {[%clk 0:00:52]} 16...
Nxe4 {[%clk 0:00:13.8]} 17. Qb4 {[%clk 0:00:50.7]} 17... Rxb6 {[%clk 0:00:11.6]}
18. Qxb6 {[%clk 0:00:50.6]} 18... Qxc2 {[%clk 0:00:11.1]} 19. Rfe1 {[%clk
0:00:36.3]} 19... Nf4 {[%clk 0:00:10.3]} 20. Bf3 {[%clk 0:00:35.6]} 20... Ng5
{[%clk 0:00:07]} 21. Bxb7 {[%clk 0:00:27.3]} 21... Nd3 {[%clk 0:00:07.1]} 22.
Rf1 {[%clk 0:00:16.1]} 22... e4 {[%clk 0:00:06.7]} 23. b3 {[%clk 0:00:11.5]}
23... a3 {[%clk 0:00:05.1]} 24. Qe3 {[%clk 0:00:09.9]} 24... h6 {[%clk
0:00:01.9]} 25. Bxe4 {[%clk 0:00:05.9]} 25... Nxe4 {[%clk 0:00:01.5]} 26. Qxe4
{[%clk 0:00:06.4]} 26... Qc3 {[%clk 0:00:01.9]} 27. Nc4 {[%clk 0:00:06.1]} 27...
Nb2 {[%clk 0:00:01.9]} 28. Nxb2 {[%clk 0:00:05.5]} 28... axb2 {[%clk 0:00:02]}
29. Rab1 {[%clk 0:00:05.9]} 1-0

[Event "*** Titled Tuesday Blitz"]
[Site "Chess.com"]
[Date "2021.04.20"]
[Round "3"]
[White "ukchessbomber"]
[Black "bazar-wokzal"]
[Result "0-1"]
[WhiteElo "2515"]
[BlackElo "2707"]
[TimeControl "180+1"]
[EndTime "10:27:24 PDT"]
[Termination "bazar-wokzal won by resignation"]

1. d4 {[%clk 0:03:00.9]} 1... Nf6 {[%clk 0:02:59.6]} 2. c4 {[%clk 0:03:01.5]}
2... Nc6 {[%clk 0:02:59.5]} 3. Nc3 {[%clk 0:03:00.9]} 3... e5 {[%clk 0:02:59.5]}
4. d5 {[%clk 0:02:52.4]} 4... Ne7 {[%clk 0:02:59.3]} 5. e4 {[%clk 0:02:52.5]}
5... Ng6 {[%clk 0:02:59]} 6. Bd3 {[%clk 0:02:52]} 6... Bc5 {[%clk 0:02:58.6]} 7.
Nge2 {[%clk 0:02:45.8]} 7... Ng4 {[%clk 0:02:57.6]} 8. Be3 {[%clk 0:01:56.7]}
8... Bxe3 {[%clk 0:02:54.6]} 9. fxe3 {[%clk 0:01:57.6]} 9... Nxe3 {[%clk
0:02:54.4]} 10. Qd2 {[%clk 0:01:48.8]} 10... Nxg2+ {[%clk 0:02:53.9]} 11. Kd1
{[%clk 0:01:49.1]} 11... d6 {[%clk 0:02:48.3]} 12. Kc2 {[%clk 0:01:47.5]} 12...
N2f4 {[%clk 0:02:46.2]} 13. h4 {[%clk 0:01:44.1]} 13... h5 {[%clk 0:02:45.4]}
14. Rag1 {[%clk 0:01:39.7]} 14... Bg4 {[%clk 0:02:44.7]} 15. Ng3 {[%clk
0:01:33.8]} 15... Nxh4 {[%clk 0:02:41.4]} 16. Kb1 {[%clk 0:01:30.8]} 16... Nf3
{[%clk 0:02:41.1]} 17. Qe3 {[%clk 0:01:30.3]} 17... Nxg1 {[%clk 0:02:40.7]} 18.
Rxg1 {[%clk 0:01:31.2]} 18... Qd7 {[%clk 0:02:33.7]} 19. c5 {[%clk 0:01:29.9]}
19... a6 {[%clk 0:02:28.7]} 20. Bc2 {[%clk 0:01:28.6]} 20... O-O {[%clk
0:02:17.8]} 21. Nf5 {[%clk 0:01:27.2]} 21... g6 {[%clk 0:02:10.9]} 22. c6 {[%clk
0:01:16.2]} 22... bxc6 {[%clk 0:02:05.1]} 23. dxc6 {[%clk 0:01:17.1]} 23... Qd8
{[%clk 0:01:49.1]} 24. Nh6+ {[%clk 0:00:33]} 24... Kg7 {[%clk 0:01:48.7]} 25.
Nxg4 {[%clk 0:00:29.4]} 25... hxg4 {[%clk 0:01:49]} 26. Rxg4 {[%clk 0:00:30.3]}
26... Rh8 {[%clk 0:01:48.5]} 27. a3 {[%clk 0:00:29.6]} 27... Rb8 {[%clk
0:01:42.5]} 28. Bd3 {[%clk 0:00:20.1]} 28... Rh3 {[%clk 0:01:38]} 29. Rg3 {[%clk
0:00:20.6]} 29... Qh4 {[%clk 0:01:31.3]} 30. Rxh3 {[%clk 0:00:17.1]} 30... Qxh3
{[%clk 0:01:31]} 31. Qxh3 {[%clk 0:00:17.5]} 31... Nxh3 {[%clk 0:01:31.7]} 32.
Bxa6 {[%clk 0:00:18.2]} 32... g5 {[%clk 0:01:28]} 33. Bb7 {[%clk 0:00:17.7]}
33... g4 {[%clk 0:01:27.3]} 34. Ne2 {[%clk 0:00:18]} 34... Nf4 {[%clk
0:01:17.6]} 35. Ng3 {[%clk 0:00:15.3]} 35... Ne6 {[%clk 0:01:16.5]} 36. b4
{[%clk 0:00:12.8]} 36... Nd8 {[%clk 0:01:15.9]} 37. Nf5+ {[%clk 0:00:12.5]}
37... Kf6 {[%clk 0:01:15.2]} 38. Ba6 {[%clk 0:00:04.4]} 38... Nxc6 {[%clk
0:01:12.7]} 39. Be2 {[%clk 0:00:05.3]} 39... Nxb4 {[%clk 0:01:09.8]} 40. axb4
{[%clk 0:00:03.9]} 40... Rxb4+ {[%clk 0:01:09.9]} 41. Kc2 {[%clk 0:00:04.8]}
41... Rxe4 {[%clk 0:01:09.9]} 42. Ng3 {[%clk 0:00:03.3]} 42... Rxe2+ {[%clk
0:01:09.3]} 43. Nxe2 {[%clk 0:00:03.3]} 43... Kg5 {[%clk 0:01:09]} 44. Kd3
{[%clk 0:00:03.9]} 44... f5 {[%clk 0:01:09]} 45. Ke3 {[%clk 0:00:04.8]} 45...
f4+ {[%clk 0:01:08.3]} 46. Ke4 {[%clk 0:00:05.3]} 46... g3 {[%clk 0:01:07.1]}
47. Kf3 {[%clk 0:00:05.2]} 47... d5 {[%clk 0:01:06.3]} 48. Nc3 {[%clk
0:00:05.1]} 48... e4+ {[%clk 0:01:06.2]} 49. Kg2 {[%clk 0:00:05.6]} 49... c6
{[%clk 0:01:05.9]} 50. Kg1 {[%clk 0:00:04.2]} 50... f3 {[%clk 0:01:05.5]} 51.
Nd1 {[%clk 0:00:04.5]} 51... Kf4 {[%clk 0:01:05.1]} 52. Kf1 {[%clk 0:00:03.4]}
52... e3 {[%clk 0:01:03.9]} 53. Kg1 {[%clk 0:00:02.2]} 53... e2 {[%clk
0:01:03.4]} 0-1

[Event "*** Titled Tuesday Blitz"]
[Site "Chess.com"]
[Date "2021.04.20"]
[Round "3"]
[White "LawrenceTrent"]
[Black "viktorgen2021"]
[Result "1-0"]
[WhiteElo "2572"]
[BlackElo "2371"]
[TimeControl "180+1"]
[EndTime "10:27:24 PDT"]
[Termination "LawrenceTrent won on time"]

1. d3 {[%clk 0:02:50.1]} 1... d5 {[%clk 0:02:54.2]} 2. g3 {[%clk 0:02:51]} 2...
e5 {[%clk 0:02:53.5]} 3. Bg2 {[%clk 0:02:51.9]} 3... c6 {[%clk 0:02:53.8]} 4.
Nf3 {[%clk 0:02:51.7]} 4... Nf6 {[%clk 0:02:54.2]} 5. Nxe5 {[%clk 0:02:51.5]}
5... Bd6 {[%clk 0:02:54.7]} 6. Nf3 {[%clk 0:02:51.6]} 6... O-O {[%clk 0:02:55]}
7. O-O {[%clk 0:02:52]} 7... Re8 {[%clk 0:02:55.4]} 8. Nc3 {[%clk 0:02:52.3]}
8... Nbd7 {[%clk 0:02:52.2]} 9. e4 {[%clk 0:02:49.9]} 9... Nf8 {[%clk 0:02:49]}
10. Bg5 {[%clk 0:02:44.4]} 10... dxe4 {[%clk 0:02:38.4]} 11. dxe4 {[%clk
0:02:42.1]} 11... h6 {[%clk 0:02:37.6]} 12. Bf4 {[%clk 0:02:09.7]} 12... Bc7
{[%clk 0:02:02.2]} 13. Qxd8 {[%clk 0:02:10.6]} 13... Bxd8 {[%clk 0:02:02.1]} 14.
Rfe1 {[%clk 0:02:09.7]} 14... Ba5 {[%clk 0:01:59.1]} 15. Nd2 {[%clk 0:01:53.8]}
15... Ng6 {[%clk 0:01:54.9]} 16. Bd6 {[%clk 0:01:51.6]} 16... Be6 {[%clk
0:01:47.4]} 17. Nb3 {[%clk 0:01:45.7]} 17... Bxc3 {[%clk 0:01:25.6]} 18. bxc3
{[%clk 0:01:44.5]} 18... Rad8 {[%clk 0:01:25.4]} 19. Rad1 {[%clk 0:01:42.8]}
19... Bc8 {[%clk 0:01:01]} 20. f3 {[%clk 0:01:36.9]} 20... b6 {[%clk 0:00:55.7]}
21. Ba3 {[%clk 0:01:35.6]} 21... c5 {[%clk 0:00:52.3]} 22. Bc1 {[%clk
0:01:33.2]} 22... Be6 {[%clk 0:00:46.6]} 23. Rxd8 {[%clk 0:01:23.8]} 23... Rxd8
{[%clk 0:00:46.1]} 24. Kf2 {[%clk 0:01:24]} 24... Ne5 {[%clk 0:00:41.9]} 25. Bf1
{[%clk 0:01:24.2]} 25... a5 {[%clk 0:00:35]} 26. Bf4 {[%clk 0:01:21]} 26... Nc6
{[%clk 0:00:28.9]} 27. Bb5 {[%clk 0:01:14.1]} 27... Na7 {[%clk 0:00:28.1]} 28.
c4 {[%clk 0:01:05.4]} 28... Nxb5 {[%clk 0:00:25]} 29. cxb5 {[%clk 0:01:05.6]}
29... a4 {[%clk 0:00:25.6]} 30. Nc1 {[%clk 0:01:04.3]} 30... Rd7 {[%clk
0:00:22.8]} 31. Nd3 {[%clk 0:01:00.4]} 31... Bxa2 {[%clk 0:00:21.8]} 32. Ra1
{[%clk 0:00:59]} 32... Bc4 {[%clk 0:00:21.3]} 33. Ne5 {[%clk 0:00:58.6]} 33...
Bxb5 {[%clk 0:00:17]} 34. c4 {[%clk 0:00:56.8]} 34... Bxc4 {[%clk 0:00:14]} 35.
Nxc4 {[%clk 0:00:45.2]} 35... Rd4 {[%clk 0:00:13.5]} 36. Nd6 {[%clk 0:00:46.1]}
36... Rb4 {[%clk 0:00:12.2]} 37. Nf5 {[%clk 0:00:44.9]} 37... Kh7 {[%clk
0:00:09.5]} 38. g4 {[%clk 0:00:44.1]} 38... Rb2+ {[%clk 0:00:09.8]} 39. Kg3
{[%clk 0:00:44.4]} 39... b5 {[%clk 0:00:08.7]} 40. Rd1 {[%clk 0:00:44]} 40... a3
{[%clk 0:00:08.3]} 41. Be5 {[%clk 0:00:44.2]} 41... Rc2 {[%clk 0:00:07.7]} 42.
Nxg7 {[%clk 0:00:44.3]} 42... Kxg7 {[%clk 0:00:04.8]} 43. Rd6 {[%clk 0:00:44.2]}
43... c4 {[%clk 0:00:04.3]} 44. Bxf6+ {[%clk 0:00:43.7]} 44... Kg6 {[%clk
0:00:01.6]} 45. h4 {[%clk 0:00:43.5]} 1-0

[Event "*** Titled Tuesday Blitz"]
[Site "Chess.com"]
[Date "2021.04.20"]
[Round "3"]
[White "HackingKid98"]
[Black "aljado"]
[Result "1-0"]
[WhiteElo "2473"]
[BlackElo "2068"]
[TimeControl "180+1"]
[EndTime "10:27:25 PDT"]
[Termination "HackingKid98 won on time"]

1. Nf3 {[%clk 0:03:00.9]} 1... Nf6 {[%clk 0:02:58.3]} 2. c4 {[%clk 0:03:00.8]}
2... g6 {[%clk 0:02:56.4]} 3. Nc3 {[%clk 0:03:00.8]} 3... Bg7 {[%clk 0:02:56.1]}
4. g3 {[%clk 0:03:00.4]} 4... O-O {[%clk 0:02:55.4]} 5. Bg2 {[%clk 0:03:00.6]}
5... d6 {[%clk 0:02:53.6]} 6. d4 {[%clk 0:02:58.9]} 6... Nc6 {[%clk 0:02:51.7]}
7. O-O {[%clk 0:02:56.6]} 7... e5 {[%clk 0:02:50.7]} 8. dxe5 {[%clk 0:02:55.2]}
8... dxe5 {[%clk 0:02:48.8]} 9. Bg5 {[%clk 0:02:54.8]} 9... Be6 {[%clk
0:02:37.7]} 10. Nd5 {[%clk 0:02:54.2]} 10... Bxd5 {[%clk 0:02:19.5]} 11. Bxf6
{[%clk 0:02:51.6]} 11... Bxf6 {[%clk 0:02:16.2]} 12. cxd5 {[%clk 0:02:51.5]}
12... Ne7 {[%clk 0:02:12.8]} 13. Nd2 {[%clk 0:02:46.6]} 13... Nxd5 {[%clk
0:02:01.2]} 14. Ne4 {[%clk 0:02:23.9]} 14... Bg7 {[%clk 0:02:00.2]} 15. Nc5
{[%clk 0:02:23.7]} 15... c6 {[%clk 0:01:53.5]} 16. Nxb7 {[%clk 0:02:20.4]} 16...
Qb6 {[%clk 0:01:50.3]} 17. Qb3 {[%clk 0:02:19.9]} 17... Rfb8 {[%clk 0:01:41]}
18. Qxb6 {[%clk 0:02:11.5]} 18... axb6 {[%clk 0:01:37.3]} 19. Nd6 {[%clk
0:02:10.6]} 19... Rd8 {[%clk 0:01:33.6]} 20. Bxd5 {[%clk 0:01:24.7]} 20... cxd5
{[%clk 0:01:26.1]} 21. Nb5 {[%clk 0:01:23.3]} 21... Rac8 {[%clk 0:01:18.2]} 22.
Rfc1 {[%clk 0:01:22]} 22... Kf8 {[%clk 0:01:08.3]} 23. Kf1 {[%clk 0:01:20.8]}
23... Ke7 {[%clk 0:01:06.9]} 24. Ke1 {[%clk 0:01:19.2]} 24... Kd7 {[%clk
0:01:03.3]} 25. Kd2 {[%clk 0:01:18.4]} 25... Rc5 {[%clk 0:00:55.4]} 26. a4
{[%clk 0:01:14.6]} 26... Rdc8 {[%clk 0:00:52]} 27. b4 {[%clk 0:01:08.6]} 27...
Rc4 {[%clk 0:00:46.1]} 28. Rxc4 {[%clk 0:00:54.3]} 28... Rxc4 {[%clk 0:00:44.7]}
29. a5 {[%clk 0:00:54.4]} 29... bxa5 {[%clk 0:00:18.4]} 30. bxa5 {[%clk
0:00:52.6]} 30... e4 {[%clk 0:00:17.6]} 31. Ra2 {[%clk 0:00:45.2]} 31... Rb4
{[%clk 0:00:14.9]} 32. Nc3 {[%clk 0:00:44.7]} 32... Kc6 {[%clk 0:00:08.3]} 33.
a6 {[%clk 0:00:43.4]} 33... Bxc3+ {[%clk 0:00:07.7]} 34. Kxc3 {[%clk 0:00:42.6]}
34... Rb8 {[%clk 0:00:05.4]} 35. a7 {[%clk 0:00:41.6]} 35... Ra8 {[%clk
0:00:05.2]} 36. Kd4 {[%clk 0:00:41.7]} 36... Kd6 {[%clk 0:00:05.2]} 37. Ra6+
{[%clk 0:00:40.3]} 37... Kd7 {[%clk 0:00:04.8]} 38. Kxd5 {[%clk 0:00:41.2]}
38... f5 {[%clk 0:00:04.3]} 39. Ke5 {[%clk 0:00:38.9]} 39... Ke7 {[%clk
0:00:04.2]} 40. h4 {[%clk 0:00:36.1]} 1-0

[Event "*** Titled Tuesday Blitz"]
[Site "Chess.com"]
[Date "2021.04.20"]
[Round "3"]
[White "hansen"]
[Black "Fighterman91"]
[Result "1-0"]
[WhiteElo "2830"]
[BlackElo "2626"]
[TimeControl "180+1"]
[EndTime "10:27:30 PDT"]
[Termination "hansen won by resignation"]

1. e4 {[%clk 0:03:00.9]} 1... c6 {[%clk 0:02:54.8]} 2. Nc3 {[%clk 0:02:59.6]}
2... d5 {[%clk 0:02:54.9]} 3. Nf3 {[%clk 0:03:00.5]} 3... dxe4 {[%clk
0:02:55.2]} 4. Nxe4 {[%clk 0:03:00.8]} 4... Nf6 {[%clk 0:02:56.1]} 5. d3 {[%clk
0:03:01.5]} 5... Bf5 {[%clk 0:02:44.7]} 6. Qe2 {[%clk 0:03:01.2]} 6... e6 {[%clk
0:02:27.7]} 7. g3 {[%clk 0:02:56.8]} 7... Nbd7 {[%clk 0:02:23.3]} 8. Bg2 {[%clk
0:02:57.2]} 8... Be7 {[%clk 0:02:23.7]} 9. O-O {[%clk 0:02:57]} 9... O-O {[%clk
0:02:24.2]} 10. Bf4 {[%clk 0:02:57.7]} 10... Nd5 {[%clk 0:02:23.8]} 11. Bd2
{[%clk 0:02:57.8]} 11... Bg6 {[%clk 0:02:02.5]} 12. Rfe1 {[%clk 0:02:52.1]}
12... Re8 {[%clk 0:01:58.9]} 13. a3 {[%clk 0:02:48.9]} 13... a5 {[%clk
0:01:57.5]} 14. d4 {[%clk 0:02:44.1]} 14... b5 {[%clk 0:01:40]} 15. c4 {[%clk
0:02:40.5]} 15... bxc4 {[%clk 0:01:40.1]} 16. Qxc4 {[%clk 0:02:41.4]} 16... Qb6
{[%clk 0:01:28]} 17. b3 {[%clk 0:02:16.2]} 17... Reb8 {[%clk 0:01:21.6]} 18. Nc3
{[%clk 0:01:28.4]} 18... Qxb3 {[%clk 0:00:39.8]} 19. Qxc6 {[%clk 0:01:28]} 19...
N7f6 {[%clk 0:00:32.1]} 20. Nxd5 {[%clk 0:01:22.1]} 20... Nxd5 {[%clk
0:00:29.9]} 21. Ne5 {[%clk 0:00:55.4]} 21... Rc8 {[%clk 0:00:18.6]} 22. Bxd5
{[%clk 0:00:39.3]} 22... exd5 {[%clk 0:00:19.5]} 23. Nxg6 {[%clk 0:00:26.5]}
23... hxg6 {[%clk 0:00:14.9]} 24. Qd7 {[%clk 0:00:26.7]} 24... Bf6 {[%clk
0:00:15.1]} 25. Be3 {[%clk 0:00:18.1]} 25... Rd8 {[%clk 0:00:07.4]} 26. Qg4
{[%clk 0:00:17.2]} 26... Rab8 {[%clk 0:00:04.4]} 27. h4 {[%clk 0:00:15.7]} 27...
Qd3 {[%clk 0:00:04.4]} 28. Red1 {[%clk 0:00:10.7]} 28... Qf5 {[%clk 0:00:04.6]}
29. Qxf5 {[%clk 0:00:09.4]} 29... gxf5 {[%clk 0:00:04.2]} 30. a4 {[%clk
0:00:08.6]} 30... Rb4 {[%clk 0:00:04]} 31. Bd2 {[%clk 0:00:07.6]} 31... Rxd4
{[%clk 0:00:03.8]} 32. Bxa5 {[%clk 0:00:08]} 32... Rxd1+ {[%clk 0:00:04]} 33.
Rxd1 {[%clk 0:00:08]} 33... d4 {[%clk 0:00:04.7]} 34. Bxd8 {[%clk 0:00:08]}
34... Bxd8 {[%clk 0:00:04.8]} 35. Rxd4 {[%clk 0:00:08.2]} 1-0

[Event "*** Titled Tuesday Blitz"]
[Site "Chess.com"]
[Date "2021.04.20"]
[Round "3"]
[White "Joseacorrea"]
[Black "yonaltimur"]
[Result "1-0"]
[WhiteElo "2062"]
[BlackElo "1749"]
[TimeControl "180+1"]
[EndTime "10:27:31 PDT"]
[Termination "Joseacorrea won on time"]

1. c4 {[%clk 0:02:59.5]} 1... e5 {[%clk 0:02:58.5]} 2. Nc3 {[%clk 0:03:00]} 2...
Nf6 {[%clk 0:02:57.8]} 3. g3 {[%clk 0:03:00.2]} 3... Bc5 {[%clk 0:02:57.4]} 4.
Bg2 {[%clk 0:03:00]} 4... d6 {[%clk 0:02:56.8]} 5. e3 {[%clk 0:03:00.2]} 5... a6
{[%clk 0:02:55.1]} 6. Nge2 {[%clk 0:02:59.5]} 6... O-O {[%clk 0:02:54.5]} 7. O-O
{[%clk 0:02:59.3]} 7... Re8 {[%clk 0:02:46.4]} 8. a3 {[%clk 0:02:52.2]} 8... e4
{[%clk 0:02:34.4]} 9. b4 {[%clk 0:02:43.4]} 9... Ba7 {[%clk 0:02:31.3]} 10. d3
{[%clk 0:02:42.5]} 10... exd3 {[%clk 0:02:29.1]} 11. Qxd3 {[%clk 0:02:43.4]}
11... Bd7 {[%clk 0:02:23.2]} 12. Bxb7 {[%clk 0:02:40.2]} 12... Bc6 {[%clk
0:02:22.3]} 13. Bxa8 {[%clk 0:02:34.3]} 13... Bxa8 {[%clk 0:02:21.3]} 14. f3
{[%clk 0:02:18.5]} 14... Nbd7 {[%clk 0:02:17.5]} 15. Nd4 {[%clk 0:01:37.6]}
15... Ne5 {[%clk 0:02:15.5]} 16. Qd1 {[%clk 0:01:00.3]} 16... Nxc4 {[%clk
0:01:45]} 17. Re1 {[%clk 0:00:33.1]} 17... Qd7 {[%clk 0:01:21.3]} 18. Kg2 {[%clk
0:00:29.1]} 18... Ng4 {[%clk 0:01:17.2]} 19. e4 {[%clk 0:00:21]} 19... Nge5
{[%clk 0:00:54.9]} 20. Nd5 {[%clk 0:00:16.5]} 20... c6 {[%clk 0:00:34.7]} 21.
Ne3 {[%clk 0:00:16]} 21... c5 {[%clk 0:00:32.5]} 22. Ndf5 {[%clk 0:00:13.9]}
22... Rd8 {[%clk 0:00:19.3]} 23. Nxc4 {[%clk 0:00:12.5]} 23... Nxc4 {[%clk
0:00:16.7]} 24. Bf4 {[%clk 0:00:12.4]} 24... cxb4 {[%clk 0:00:13.2]} 25. axb4
{[%clk 0:00:09.8]} 25... d5 {[%clk 0:00:12.4]} 26. Qc2 {[%clk 0:00:05.7]} 26...
Nb6 {[%clk 0:00:05.3]} 27. exd5 {[%clk 0:00:05.7]} 27... Bxd5 {[%clk 0:00:04.1]}
28. Rad1 {[%clk 0:00:06.2]} 28... Kh8 {[%clk 0:00:01.7]} 29. Be5 {[%clk
0:00:04.8]} 29... f6 {[%clk 0:00:01.4]} 30. Nxg7 {[%clk 0:00:03.8]} 1-0